[Event "FIDE World School-ch O-11 2025"]
[Site "Vrnjacka Banja"]
[Date "2025.03.22"]
[Round "4.3"]
[White "Zhang, Royce"]
[Black "Zhauynbay, Alimzhan"]
[Result "0-1"]
[Annotator "TA"]
[ECO "E94"]
[WhiteElo "1756"]
[BlackElo "1927"]
[PlyCount "120"]
[EventDate "2025.03.19"]
[EventType "swiss"]
[EventCountry "SRB"]
[SourceTitle "playchess.com"]
[Source "ChessBase"]
[SourceQuality "1"]
[TimeControl "5400+30"]

{[%evp 23,120,8,46,24,41,47,50,42,47,0,21,9,0,0,39,41,75,54,68,73,73,98,127,76,99,87,178,179,232,215,290,274,288,287,295,289,277,279,341,318,405,300,500,243,333,274,462,446,477,450,545,521,363,243,290,225,211,211,244,51,58,48,35,0,0,0,0,0,0,-391,-388,-375,-320,-330,-101,-97,-125,-93,-110,-129,-123,-108,-119,-29982,-29983,-29983,-29984,-29984,-29985,-29985,-29986,-29986,-29987,-29987,-29988,-29989,-29990,-29989,-29988]} 1. d4 {[%emt 0:00:01]} Nf6 {[%emt 0:00:06]} 2. Nf3 {[%emt 0:00:06]} g6 {[%emt 0:00:05]} 3. c4 {[%emt 0:00:05]} Bg7 {[%emt 0:00:04]} 4. Nc3 {[%emt 0:00:06]} d6 {[%emt 0:00:04]} 5. e4 {[%emt 0:00:06]} O-O {[%emt 0:00:06]} 6. Be2 {[%emt 0:00:03]} Na6 {[%emt 0:00:13]} 7. O-O {[%emt 0:00:15]} e5 {[%emt 0:00:21]} 8. d5 {[%emt 0:00:29]} Nc5 {[%emt 0:00:14]} 9. Qc2 {[%emt 0:00:14]} a5 {[%emt 0:00:12]} 10. Bg5 {[%emt 0:00:10]} h6 {[%emt 0:01:06]} 11. Be3 {[%emt 0:00:06]} b6 {[%emt 0:00:38]} 12. Nd2 {[%emt 0:00:08]} Bg4 {[%emt 0:02:12]} 13. Qd1 {[%emt 0:00:13] E94: King's Indian: Classical: 6 Be2 e5 7 0-0: Various Black 7th moves.} Bxe2 {[%emt 0:01:54]} 14. Qxe2 {[%emt 0:00:20]} Qd7 {[%emt 0:05:00]} 15. f3 {[%emt 0:04:52] White is slightly better.} Nh5 {[%emt 0:01:37]} 16. b3 $146 {[%emt 0:04:59]} (16. Ndb1 $14 {should be considered.}) (16. g3 Rae8 17. b3 f5 18. a3 f4 19. Bxc5 dxc5 20. g4 Nf6 21. Rf2 Ra8 22. Rg2 {½-½ Zubarev,A (2552)-Polivanov,A (2399) Mukachevo Summer op 2016 (3)}) 16... f5 {[%emt 0:05:42]} 17. a3 {[%emt 0:02:57]} Nf4 {[%emt 0:03:17]} 18. Qd1 {[%emt 0:01:35]} Qe7 {[%emt 0:02:53]} 19. Kh1 {[%emt 0:03:39]} Nh5 {[%emt 0:07:58]} 20. Qc2 {[%emt 0:04:11]} f4 {[%emt 0:05:39]} 21. Bf2 {[%emt 0:02:39]} Bf6 {[%emt 0:06:43]} 22. b4 {[%emt 0:06:57]} Nd7 {[%emt 0:03:49]} 23. Rfc1 {[%emt 0:02:55]} (23. Nb5 $142) 23... Bh4 $16 {[%emt 0:02:55]} 24. Bg1 {[%emt 0:05:25]} g5 {[%emt 0:05:00]} (24... axb4 $16 {was called for.} 25. axb4 Qh7) 25. Nb5 $18 {[%emt 0:01:39]} Ndf6 {[%emt 0:06:41]} (25... axb4 $142 26. axb4 Rxa1 27. Rxa1 Qd8) 26. c5 {[%emt 0:01:52]} Qd7 {[%emt 0:03:47]} 27. Qd3 {[%emt 0:02:01]} bxc5 {[%emt 0:05:54]} 28. bxc5 {[%emt 0:01:40]} Ne8 {[%emt 0:03:45]} 29. cxd6 {[%emt 0:03:43]} cxd6 {[%emt 0:00:08]} 30. Rc6 {[%emt 0:00:26]} Rf6 {[%emt 0:03:15]} 31. Nc4 {[%emt 0:01:30]} Qe7 {[%emt 0:01:40]} 32. a4 {[%emt 0:01:25]} Rg6 $2 {[%emt 0:01:15]} (32... Ng3+ 33. hxg3 Bxg3) 33. h3 {[%emt 0:07:45]} (33. Bc5 $142) 33... Ng3+ {[%emt 0:01:12]} 34. Kh2 {[%emt 0:00:01]} h5 $2 {[%emt 0:00:23] [#]} (34... g4) 35. Nbxd6 $1 {[%emt 0:01:56]} Nxd6 {[%emt 0:00:59]} 36. Nxd6 {[%emt 0:00:10]} (36. Bc5 Rd8 37. Nxd6 (37. Rxd6 Rdxd6 38. Nxd6 g4 $18) 37... Qh7 $18) 36... Qd7 {[%emt 0:01:20] Wards off Nc8} (36... Rxd6 37. Bc5 Rad8 38. Rxd6 (38. Bxd6 Rxd6 39. Qa6 Rd8 $18) (38. Qa3 Nf5 $16) 38... Rxd6 39. Qa3 $18) 37. Bc5 {[%emt 0:02:47]} g4 {[%emt 0:01:17]} 38. Qb5 {[%emt 0:09:17]} Rg7 {[%emt 0:03:38] Black is weak on the light squares} 39. Rb6 {[%emt 0:05:21]} Qd8 {[%emt 0:03:18]} 40. Rb1 {[%emt 0:03:45]} Qg5 {[%emt 0:03:11] aiming for ...gxf3.} 41. Rb8+ $2 {[%emt 0:00:54]} ({Better is} 41. Rg1 $18) 41... Rxb8 $14 {[%emt 0:00:50]} 42. Qxb8+ {[%emt 0:00:10]} Kh7 {[%emt 0:00:05] ( -> ...gxf3)} 43. Rb7 {[%emt 0:06:08] and Nf7 would now be decisive} Nf1+ {[%emt 0:01:27]} 44. Kg1 {[%emt 0:00:52]} gxf3 {[%emt 0:00:38][%csl Gf3,Gg7][%cal Rg5g2]} 45. g4 {[%emt 0:03:03] Intending Nf7 and mate.} (45. Kxf1 $2 Qxg2#) 45... fxg3 $40 {[%emt 0:03:20][%mdl 128] ( -> ...Nh2) Black mounts an attack.} 46. Nf5 $2 {[%emt 0:04:09][%mdl 8192]} (46. Kxf1 $2 Qc1#) (46. Rxg7+ $11 Qxg7 47. Qc8 (47. Kxf1 g2+ 48. Kg1 f2+ 49. Bxf2 Bxf2+ 50. Kxf2 g1=Q+ 51. Ke2 Q7g2+ 52. Kd3 Qd4#) 47... f2+ 48. Kg2) 46... f2+ $19 {[%emt 0:00:59]} 47. Kg2 {[%emt 0:00:10] [#]} Nd2 $1 {[%emt 0:00:37][%csl Gd2][%cal Rf2f1]} 48. Ne3 {[%emt 0:04:59] [#]} (48. Rxg7+ $2 Qxg7 49. Ne3 Bg5 $19 (49... Nxe4 50. Qb1 $17)) 48... Nxe4 $2 {[%emt 0:01:32]} ({Avoid the trap} 48... Qxe3 $2 49. Rxg7+ Kxg7 50. Qf8+ (50. Bxe3 $2 f1=Q#) 50... Kg6 51. Qe8+ (51. Bxe3 f1=Q+ 52. Qxf1 Nxf1 $18) 51... Kh7 52. Qf7+ (52. Bxe3 $2 f1=Q#) 52... Kh8 53. Bxe3 $18) (48... Qf6 $1 $19 {[%csl Gd2][%cal Rf6f3] has better winning chances.} 49. Rxg7+ Kxg7 50. Qc7+ Kg6) 49. Rxg7+ $17 {[%emt 0:03:44]} Qxg7 {[%emt 0:00:10]} 50. Qb1 {[%emt 0:00:10]} Qg6 {[%emt 0:01:10]} 51. Qb7+ {[%emt 0:00:32] [#]} Kh6 $1 {[%emt 0:02:27][%cal Oe4d6] ( -> ...Nd6!)} 52. Bf8+ {[%emt 0:01:52]} Kg5 {[%emt 0:00:05]} 53. Nc4 $2 {[%emt 0:01:04][%mdl 8192] [#]} (53. d6 $17 Nf6 (53... Nxd6 54. Be7+ Kh6 55. Bf8+ Kg5 56. Be7+ Kh6 57. Bf8+ Kg5 $11) 54. Be7) 53... f1=Q+ $1 {[%emt 0:00:28] Black mates.} 54. Kxf1 {[%emt 0:00:09]} Qf5+ {[%emt 0:00:05]} 55. Ke2 {[%emt 0:00:21]} Qf2+ {[%emt 0:00:16]} 56. Kd3 {[%emt 0:00:36]} Qd4+ {[%emt 0:00:08]} 57. Kc2 {[%emt 0:00:27]} Qxc4+ {[%emt 0:00:06]} 58. Kb1 {[%emt 0:00:19]} Qf1+ {[%emt 0:00:09]} 59. Ka2 {[%emt 0:00:15]} Qxf8 {[%emt 0:00:08]} 60. d6 {[%emt 0:00:24]} Nxd6 {[%emt 0:00:12] Never resign too early!   Weighted Error Value: White=0.46/Black=0.39  Loses game:     	White=2     	---        Missed win:     	White=1     	Black=1      Mistake:       	White=3     	Black=4      Inaccurate:     	White=2     	Black=3      OK:         	White=18    	Black=9      Best:        	White=4     	Black=5      Strong:       	---       	Black=2} 0-1

[Event "FIDE World School-ch O-11 2025"]
[Site "Vrnjacka Banja"]
[Date "2025.03.22"]
[Round "4.4"]
[White "Larion, Iustin"]
[Black "Bai, Moxuan"]
[Result "1-0"]
[Annotator "TA"]
[ECO "B20"]
[WhiteElo "1919"]
[BlackElo "1726"]
[PlyCount "77"]
[EventDate "2025.03.19"]
[EventType "swiss"]
[EventCountry "SRB"]
[SourceTitle "playchess.com"]
[Source "ChessBase"]
[SourceQuality "1"]
[TimeControl "5400+30"]

{[%evp 9,76,-10,6,-13,-8,-9,15,11,36,25,35,7,25,10,17,0,0,0,0,0,0,0,8,-9,27,-44,-38,-35,-43,-72,-86,-74,-76,-79,-47,-42,0,-81,-79,-90,-90,-108,-16,-14,0,0,0,0,0,0,20,17,54,27,69,62,139,87,135,127,133,119,829,314,29997,29998,29998,29999,29999]} 1. e4 {[%emt 1:31:00]} c5 {[%emt 0:02:46]} 2. b3 {[%emt 0:00:00]} Nc6 {[%emt 0:00:59]} 3. Bb2 {[%emt 0:00:00]} d6 {[%emt 0:00:42]} 4. Bb5 {[%emt 0:00:00]} e5 {[%emt 0:00:35]} 5. Ne2 {[%emt 0:00:00]} Nf6 {[%emt 0:01:21]} 6. Bxc6+ {[%emt 0:00:00] B20: Sicilian: Unusual White 2nd moves.} bxc6 {[%emt 0:00:09]} 7. d3 {[%emt 0:00:00]} Qc7 {[%emt 0:05:02]} 8. f4 $146 {[%emt 0:00:00] The position is equal.} (8. O-O d5 9. Nd2 Bd6 10. h3 Be6 11. Kh1 Qd7 12. Kh2 g5 13. Nf3 g4 14. Nxe5 {0-1 Garcia Nunez,H (1007)-Regadera Tellez,P (1279) ESP-ch U10 Salobrena 2023 (6)}) 8... exf4 {[%emt 0:10:59]} 9. Nxf4 {[%emt 0:00:00]} d5 {[%emt 0:13:02]} 10. O-O {[%emt 0:00:00]} d4 {[%emt 0:07:25]} 11. h3 {[%emt 0:00:00]} Bd6 {[%emt 0:01:53]} 12. Nh5 {[%emt 0:00:00]} Nxh5 {[%emt 0:01:09]} 13. Qxh5 {[%emt 0:00:00][%cal Oe4e5]} O-O {[%emt 0:50:58]} 14. Nd2 {[%emt 0:00:00]} Be6 {[%emt 0:00:00]} 15. a4 {[%emt 0:00:00]} g6 {[%emt 0:00:00]} 16. Qe2 {[%emt 0:00:00] A sharp opening} Rfe8 {[%emt 0:00:00]} 17. Nc4 {[%emt 0:00:00]} (17. Ba3 $11) 17... Bxc4 $15 {[%emt 0:00:00]} 18. bxc4 {[%emt 0:00:00] [#]} f5 $1 {[%emt 0:00:00] Inhibits Qg4.} 19. Rae1 {[%emt 0:00:00]} (19. Bc1 Re6) 19... Bh2+ {[%emt 0:00:00]} 20. Kh1 {[%emt 0:00:00]} Bg3 {[%emt 0:00:00]} 21. Rd1 {[%emt 0:00:00]} fxe4 {[%emt 0:00:00]} 22. dxe4 {[%emt 0:00:00]} Re6 {[%emt 0:00:00]} 23. Ba3 {[%emt 0:00:00] [#]} (23. c3 $11 {keeps the balance.}) 23... Bd6 $1 $17 {[%emt 0:00:00]} 24. Bc1 {[%emt 0:00:00]} Rae8 {[%emt 0:00:00]} 25. Bh6 {[%emt 0:00:00]} Be5 {[%emt 0:00:00]} (25... Rxe4 $17 26. Qf3 Re2) 26. Qg4 $11 {[%emt 0:00:00][%cal Og4e6] White wants to mate with Qxe6+!.} Bg7 {[%emt 0:00:00]} (26... Qe7 {is more complex.} 27. Rde1 Bg7 28. Bxg7 h5) 27. Bxg7 {[%emt 0:00:00]} Qxg7 {[%emt 0:00:00]} 28. Rf4 {[%emt 0:00:00]} Qe7 {[%emt 0:00:00][%cal Re6e4]} 29. Re1 {[%emt 0:00:00]} Qd8 {[%emt 0:00:00]} 30. Ref1 {[%emt 0:01:55][%cal Oa4a5]} Qd6 {[%emt 0:00:00]} 31. Qf3 {[%emt 0:05:16]} a6 {[%emt 0:00:03]} 32. a5 {[%emt 0:02:26]} h6 {[%emt 0:04:02]} ({Black should try} 32... h5 $14) 33. h4 {[%emt 0:02:55]} ({Better is} 33. e5 Rxe5 34. Rf6) 33... Qe7 {[%emt 0:01:19]} (33... h5 $142) 34. h5 $16 {[%emt 0:00:48]} Qd6 {[%emt 0:03:52]} 35. Kg1 {[%emt 0:01:02] Strongly threatening Rf7.} Re5 $2 {[%emt 0:01:00][%mdl 8192] This costs Black the game.} (35... Kh8 $16 36. Rf7 gxh5) 36. Rf7 $2 {[%emt 0:00:52]} (36. Rf6 R5e6 37. e5 (37. hxg6 Rxf6 38. Qxf6 Qxf6 $16) 37... Rxf6 38. exf6 (38. exd6 Rxf3 39. Rxf3 gxh5 $14)) 36... R8e7 $2 {[%emt 0:00:43]} (36... Rxe4 $2 37. Rg7+ Kxg7 38. Qf7+ Kh8 39. hxg6 $18 (39. Qxg6 $2 {perishes.} Qxg6 40. hxg6 Re1 $19)) (36... g5 $18 37. Rf6 R5e6 38. Rxh6 Qe7 39. Rxe6 Qxe6) 37. Rf8+ {[%emt 0:00:12] White mates.} Kg7 {[%emt 0:00:04] [#]} 38. Qf7+ $3 {[%emt 0:00:13][%mdl 512]} Rxf7 {[%emt 0:00:03]} 39. R1xf7# {[%emt 0:00:09] Weighted Error Value: White=0.31/Black=0.47  Loses game:     	---       	Black=1      Mistake:       	White=4     	Black=4      Inaccurate:     	White=3     	Black=5      OK:         	White=13    	Black=10     Best:        	White=1     	Black=1      Strong:       	---       	Black=1} 1-0

[Event "FIDE World School-ch O-11 2025"]
[Site "Vrnjacka Banja"]
[Date "2025.03.22"]
[Round "4.5"]
[White "Munkhbadral, Erdene-ochir"]
[Black "Lishoy Gengis Paratazham, Dildarav"]
[Result "0-1"]
[Annotator "NA RC"]
[ECO "E08"]
[WhiteElo "1401"]
[BlackElo "2071"]
[PlyCount "60"]
[EventDate "2025.03.19"]
[EventType "swiss"]
[EventCountry "SRB"]
[SourceTitle "playchess.com"]
[Source "ChessBase"]
[SourceQuality "1"]
[TimeControl "5400+30"]

1. d4 {[%emt 0:00:08]} Nf6 {[%emt 0:00:10]} 2. c4 {[%emt 0:00:09]} e6 {[%emt 0:01:37]} 3. Nf3 {[%emt 0:01:02]} Bb4+ {[%emt 0:00:15]} 4. Bd2 {[%emt 0:01:07]} Be7 {[%emt 0:00:13]} 5. g3 {[%emt 0:00:56]} d5 {[%emt 0:00:18]} 6. Bg2 {[%emt 0:00:28]} O-O {[%emt 0:00:08]} 7. O-O {[%emt 0:00:19]} c6 {[%emt 0:00:32]} 8. Qc2 {[%emt 0:01:47]} Nbd7 {[%emt 0:07:13]} 9. Bf4 {[%emt 0:02:41]} Ne4 {[%emt 0:01:28]} 10. Ne5 {[%emt 0:01:06]} Nxe5 {[%emt 0:06:53]} 11. Bxe5 {[%emt 0:01:12]} g5 {[%emt 0:07:21]} 12. f3 {[%emt 0:06:36]} Nd6 {[%emt 0:03:10]} 13. Bxd6 {[%emt 0:04:17]} Qxd6 {[%emt 0:01:08]} 14. c5 {[%emt 0:02:36]} Qc7 {[%emt 0:02:57]} 15. Nc3 {[%emt 0:02:52]} Bf6 {[%emt 0:02:03]} 16. e3 {[%emt 0:02:18]} e5 {[%emt 0:06:03]} 17. Rad1 {[%emt 0:01:28]} Be6 {[%emt 0:07:29]} 18. f4 {[%emt 0:02:57]} exd4 {[%emt 0:06:57]} 19. exd4 {[%emt 0:01:18]} Rae8 {[%emt 0:03:02]} 20. f5 {[%emt 0:03:25]} Bd7 {[%emt 0:00:27]} 21. Qd3 {[%emt 0:00:46]} Kg7 {[%emt 0:04:23]} 22. Rde1 {[%emt 0:10:57]} Qc8 {[%emt 0:03:47]} 23. g4 {[%emt 0:02:02]} Rxe1 {[%emt 0:04:37]} 24. Rxe1 {[%emt 0:00:21]} h5 {[%emt 0:05:51]} 25. Bh3 {[%emt 0:08:43]} Qc7 {[%emt 0:06:22]} 26. Rf1 {[%emt 0:06:50]} Rh8 {[%emt 0:01:36]} 27. Qd2 {[%emt 0:03:15]} hxg4 {[%emt 0:02:18]} 28. Bxg4 {[%emt 0:00:36]} Rh4 {[%emt 0:00:24]} 29. h3 {[%emt 0:02:19]} Qg3+ {[%emt 0:00:13]} 30. Kh1 {[%emt 0:00:13]} Qxg4 {[%emt 0:16:35]} 0-1

[Event "FIDE World School-ch O-11 2025"]
[Site "Vrnjacka Banja"]
[Date "2025.03.22"]
[Round "4.6"]
[White "Gatin, Artur"]
[Black "Tulegen, Ramazan"]
[Result "0-1"]
[Annotator "TA"]
[ECO "A03"]
[WhiteElo "1722"]
[BlackElo "1973"]
[PlyCount "192"]
[EventDate "2025.03.19"]
[EventType "swiss"]
[EventCountry "SRB"]
[SourceTitle "playchess.com"]
[Source "ChessBase"]
[SourceQuality "1"]
[TimeControl "5400+30"]

{[%evp 14,191,13,-14,-10,-16,-8,-2,-19,-20,-7,1,9,-19,-11,-19,4,-39,-13,-39,-14,-31,-16,-16,0,-20,-11,-20,-23,-48,-11,-32,-49,-38,-35,-35,-36,-48,-20,-16,-1,-20,-20,-16,-14,-27,-15,-31,-25,-87,-75,-102,16,42,31,-48,-51,-44,0,0,101,0,533,0,0,0,0,0,0,0,98,103,104,79,68,83,66,43,29,33,41,17,97,103,79,21,22,4,55,23,28,0,0,0,43,-13,-20,-20,-25,-24,-16,-122,-31,-203,-106,-224,-197,-505,-505,-423,-417,-670,-709,-719,-775,-740,-712,-825,-844,-824,-806,-770,-736,-735,0,0,0,-898,-895,-774,-653,-560,-534,-591,-1227,-1377,-1367,-1852,-1695,-1436,-1328,-2497,-2932,-4129,-4129,-4108,-1677,-29968,-29976,-29976,-29977,-29973,-29974,-29983,-29984,-29984,-29985,-29986,-29987,-29987,-29988,-29988,-29989,-29989,-29990,-29990,-29991,-29992,-29993,-29993,-29994,-29995,-29996,-29996,-29997,-29997,-29998,-29998,-29999,-29999]} 1. f4 {[%emt 0:00:06]} d5 {[%emt 0:00:20]} 2. Nf3 {[%emt 0:00:17]} c5 {[%emt 0:00:23]} 3. g3 {[%emt 0:00:12]} g6 {[%emt 0:00:13]} 4. Bg2 {[%emt 0:00:27]} Bg7 {[%emt 0:00:22]} 5. O-O {[%emt 0:00:31]} Nc6 {[%emt 0:00:15]} 6. d3 {[%emt 0:00:49]} Nf6 {[%emt 0:01:02]} 7. Nc3 {[%emt 0:01:21]} d4 {[%emt 0:02:01]} 8. Ne4 {[%emt 0:02:44]} Nxe4 {[%emt 0:00:38] A03: Bird's Opening with 1...d5.} 9. dxe4 {[%emt 0:00:12]} e5 {[%emt 0:00:28]} 10. e3 {[%emt 0:00:56]} O-O {[%emt 0:01:14] The position is equal.} 11. exd4 {[%emt 0:03:53]} exd4 {[%emt 0:00:26]} 12. Re1 $146 {[%emt 1:25:02]} (12. a3 a5 13. e5 Be6 14. Nd2 Bd5 15. Bxd5 Qxd5 16. Qf3 Ne7 17. Qxd5 Nxd5 18. Ne4 {½-½ Lesnykh,Z (1616)-Gulko,O (1883) Voronezh op-B 22nd 2018 (5)}) 12... h6 {[%emt 0:06:27]} 13. Rb1 {[%emt 0:00:00]} Be6 {[%emt 0:10:05]} 14. b3 {[%emt 0:00:00]} Qc7 {[%emt 0:01:56]} 15. Ba3 {[%emt 0:00:00]} b6 {[%emt 0:04:03]} 16. Qd3 {[%emt 0:00:00]} Qd7 {[%emt 0:09:52]} 17. Rbd1 {[%emt 0:00:00]} Rad8 {[%emt 0:03:02]} 18. Rd2 {[%emt 0:00:00]} Bg4 {[%emt 0:06:24]} 19. e5 {[%emt 0:00:00]} Bf5 {[%emt 0:03:07]} 20. Qc4 {[%emt 0:00:00]} Be6 {[%emt 0:03:10]} 21. Qa4 {[%emt 0:00:00]} Bd5 {[%emt 0:03:18][%cal Og6g5]} 22. Red1 {[%emt 0:00:00][%cal Oc2c3]} Qb7 {[%emt 0:08:33]} 23. Qb5 {[%emt 0:00:00]} Ne7 {[%emt 0:06:36]} 24. Ne1 {[%emt 0:00:00][%cal Oa3c5]} Bxg2 {[%emt 0:03:36]} 25. Nxg2 {[%emt 0:00:00]} a6 {[%emt 0:02:20]} 26. Qc4 {[%emt 0:00:00]} Rd5 {[%emt 0:03:02]} 27. Qe2 {[%emt 0:00:00][%cal Oc2c3]} Rfd8 {[%emt 0:04:19]} 28. Qe4 {[%emt 0:00:00]} Qc6 {[%emt 0:02:23]} 29. Nh4 {[%emt 0:00:00]} Qe6 {[%emt 0:01:05]} 30. Qe2 {[%emt 0:00:00]} b5 {[%emt 0:03:15]} 31. Nf3 {[%emt 0:00:00]} (31. Re1 $11) 31... Nf5 $17 {[%emt 0:02:06]} 32. Re1 {[%emt 0:00:00]} Ne3 {[%emt 0:02:45] [#] Black is more active.} (32... Bf8 $17 33. Qe4 R5d7) 33. Bxc5 $1 $11 {[%emt 0:00:00]} Rxc5 {[%emt 0:02:45]} (33... Nxc2 34. Red1) 34. Nxd4 {[%emt 0:00:00] [#]} (34. Rxd4 $14 Nd5 (34... Nxc2 $2 35. Rxd8+ Bf8 36. Red1 $18) 35. c4) 34... Rxd4 $1 $15 {[%emt 0:00:05]} 35. Rxd4 {[%emt 0:00:00]} Nxc2 {[%emt 0:01:54]} (35... Rxc2 36. Qxe3 Bf8 37. Kh1 Rxa2 38. Red1 $11) 36. Rd6 {[%emt 0:00:00]} Qh3 {[%emt 0:02:24]} (36... Qe7 $11 37. Red1 Rc3) 37. Red1 {[%emt 0:00:00]} (37. e6 $1 $16 {[%cal Re6f7] exf7+ would kill now.} fxe6 (37... Bd4+ 38. Rxd4 Nxd4 39. exf7+ Kh7 40. Qe4 $18) 38. Qxe6+ Qxe6 39. Rexe6) 37... Na3 $2 {[%emt 0:01:28][%mdl 8192]} (37... Kh7 $11 {and Black stays safe.}) 38. Qe3 $2 {[%emt 0:00:00]} (38. Rxa6 Rc2 39. Rd2 Qc8 (39... Rc1+ 40. Rd1 $11) 40. Rxc2 (40. Rxa3 $2 Rxd2 41. Qxd2 Qc5+ 42. Kg2 Qxa3 $19) 40... Nxc2 41. Qxb5 Qc3 $11) (38. Rd8+ Kh7 $11) ({White must play} 38. e6 $1 $18 {[%cal Re6e7]} fxe6 39. g4 (39. Qxe6+ Qxe6 40. Rxe6 Rc7 $18) (39. Rxa6 b4 $18) (39. Rxe6 Rc2 $11)) 38... Rc2 $11 {[%emt 0:00:50][%csl LRa2,LRh2]} 39. R6d2 {[%emt 0:00:00] Dodges Qg2+} Bf8 {[%emt 0:00:46]} 40. Rxc2 {[%emt 0:00:00]} Nxc2 {[%emt 0:00:05]} 41. Qc3 {[%emt 0:00:00][%cal Od1d8]} Na3 {[%emt 0:00:55]} (41... Qf5 $11) 42. Rd8 $36 {[%emt 0:00:00][%mdl 2048] White is on the roll.} Qg4 {[%emt 0:00:28]} 43. Qb4 {[%emt 0:00:00]} (43. Qc8 {simplifies} Qxc8 44. Rxc8 Kg7 45. Kf2) 43... Qd1+ {[%emt 0:00:11]} 44. Rxd1 {[%emt 0:00:00]} Bxb4 {[%emt 0:00:04]} 45. Rd8+ {[%emt 0:00:00]} Kg7 {[%emt 0:00:20]} 46. Ra8 {[%emt 0:00:00][%mdl 1024] White has compensation.} a5 {[%emt 0:00:10]} 47. Kg2 {[%emt 0:00:00]} Nc2 {[%emt 0:00:47]} (47... Nb1 $11 {keeps the balance.}) 48. Kf3 $1 {[%emt 0:00:00]} Nd4+ {[%emt 0:00:31]} 49. Ke4 {[%emt 0:00:00]} (49. Ke3 $1 $16 {[%cal Re3d4]} Ne6 50. Ke4) 49... Ne2 $11 {[%emt 0:00:55]} 50. Ra7 {[%emt 0:00:00] Strongly threatening e6.} Kf8 {[%emt 0:01:04]} (50... Nc3+ $11 51. Kd3 Nxa2) 51. f5 {[%emt 0:00:00]} Nc3+ {[%emt 0:00:28]} 52. Kf4 {[%emt 0:00:00]} Nd5+ {[%emt 0:00:40]} 53. Ke4 {[%emt 0:00:00]} Nc3+ {[%emt 0:00:22]} 54. Kf3 {[%emt 0:00:00]} (54. Kd4 $14 Ne2+ (54... gxf5 $2 55. Ra8+ Ke7 56. a3 $18) (54... Nxa2 55. f6 $14) 55. Kd3 Nc1+ 56. Ke4 gxf5+ 57. Kxf5) 54... gxf5 {[%emt 0:00:20]} 55. Kf4 {[%emt 0:00:00]} Nxa2 {[%emt 0:00:37]} 56. Kxf5 {[%emt 0:00:00]} Nc3 {[%emt 0:00:18]} 57. Kg4 {[%emt 0:00:00] [#]} (57. Rc7 $11) 57... Ne4 {[%emt 0:00:51]} (57... a4 $1 $17 {[%cal Ra4b3]} 58. bxa4 bxa4 59. Ra8+ Kg7) 58. Kh5 $2 {[%emt 0:00:00] [#]} ({White should play} 58. Rb7 $15) 58... Nc5 {[%emt 0:00:25]} ({Black should try} 58... Bd2 $1 $19 {Threatens to win with ...Nc5.} 59. Rb7 b4) 59. Kxh6 {[%emt 0:00:00]} (59. Ra8+ $17 {was forced.} Ke7 60. Rb8) 59... Nxb3 $19 {[%emt 0:00:05]} 60. Ra8+ $2 {[%emt 0:00:00]} (60. g4 {is a better chance.}) 60... Ke7 {[%emt 0:00:07]} 61. h4 {[%emt 0:00:00]} a4 {[%emt 0:00:30]} 62. h5 {[%emt 0:00:00]} (62. Kg5 $142 Ke6 63. Re8+ Be7+ 64. Kg4) 62... a3 {[%emt 0:00:21]} 63. Kg5 {[%emt 0:00:00]} Ba5 {[%emt 0:00:23]} 64. h6 {[%emt 0:00:00]} a2 {[%emt 0:00:06]} 65. h7 {[%emt 0:00:00]} a1=Q {[%emt 0:00:11] ( -> ...Bd2+)} (65... a1=B $2 {too greedy.} 66. h8=Q Ke6 67. Qe8+ Kd5 68. Qxb5+ (68. Qxf7+ Kxe5 69. Qxb3 B1c3 $18) 68... Ke4 69. Qxb3 $18) 66. h8=Q {[%emt 0:00:00]} Bd2+ {[%emt 0:01:02]} 67. Kh4 {[%emt 0:00:00]} Qh1+ {[%emt 0:00:07]} 68. Kg4 {[%emt 0:00:00]} Qe4+ {[%emt 0:00:39]} 69. Kh3 {[%emt 0:00:00][%csl Ga8][%cal Rh8e8]} Qh1+ {[%emt 0:00:07]} 70. Kg4 {[%emt 0:00:00]} Qxh8 {[%emt 0:00:05]} 71. Rxh8 {[%emt 0:00:00]} Nd4 {[%emt 0:00:23]} 72. Rh2 {[%emt 0:00:00]} Be3 {[%emt 0:01:06]} 73. Rb2 {[%emt 0:00:00]} Ke6 {[%emt 0:00:22]} 74. Rb1 {[%emt 0:00:00]} Kxe5 {[%emt 0:00:17]} 75. Rf1 {[%emt 0:00:24]} f6 {[%emt 0:01:42]} 76. Rb1 {[%emt 0:00:30]} Ke4 {[%emt 0:00:44]} 77. Kh3 {[%emt 0:00:23]} Kd3 {[%emt 0:00:30]} 78. Rf1 {[%emt 0:00:27]} Bg5 {[%emt 0:00:12] ( -> ...b4)} 79. Rb1 {[%emt 0:00:39]} Kc2 {[%emt 0:00:05]} (79... Kc4 $142 80. Kg4 b4) 80. Rb4 {[%emt 0:00:06]} Kc3 {[%emt 0:00:05] Black mates.} 81. Rb1 {[%emt 0:00:12]} b4 {[%emt 0:00:05]} 82. Kg4 {[%emt 0:00:10]} b3 {[%emt 0:00:07]} 83. Rxb3+ {[%emt 0:00:16]} Kxb3 {[%emt 0:00:06]} 84. Kh5 {[%emt 0:00:09]} Kc4 {[%emt 0:00:06]} 85. g4 {[%emt 0:00:16]} Kd5 {[%emt 0:00:07]} 86. Kg6 {[%emt 0:00:11]} Ke4 {[%emt 0:00:08]} 87. Kh5 {[%emt 0:00:23]} Kf4 {[%emt 0:00:07]} 88. Kg6 {[%emt 0:00:12]} Kxg4 {[%emt 0:00:07]} 89. Kf7 {[%emt 0:00:20]} f5 {[%emt 0:00:06]} 90. Kg6 {[%emt 0:00:20]} f4 {[%emt 0:00:14]} 91. Kh7 {[%emt 0:00:17]} f3 {[%emt 0:00:12]} 92. Kg6 {[%emt 0:00:02]} f2 {[%emt 0:00:06]} 93. Kh7 {[%emt 0:00:09]} f1=Q {[%emt 0:00:10]} 94. Kg6 {[%emt 0:00:06]} Ne6 {[%emt 0:00:07][%csl Gg4][%cal Rf1f5]} 95. Kh7 {[%emt 0:00:12]} Qf7+ {[%emt 0:00:06]} 96. Kh8 {[%emt 0:00:10]} Bf6# {[%emt 0:08:58] Never resign too early!   Weighted Error Value: White=0.46/Black=0.37  Loses game:     	White=2     	Black=1      Missed win:     	White=1     	---        Mistake:       	White=9     	Black=7      Inaccurate:     	White=6     	Black=5      OK:         	White=14    	Black=18     Best:        	White=3     	Black=8      Strong:       	White=1     	---        Brilliant:      	White=1     	Black=1} 0-1